fUST/lending_fUST_20240714
["ID","MTS","AMOUNT","RATE_DAILY","PERIOD"]
[332000423,1720930248055,-500.0,0.00024931,2]
[332000424,1720930248064,-500.0,0.00024931,2]
[332000425,1720930248074,-500.0,0.00024931,2]
[332000426,1720930248083,-500.0,0.00024931,2]
[332000427,1720930248094,-186.673413,0.00024931,7]
[332000428,1720930248104,-200.0,0.00024931,2]
[332000429,1720930248114,-500.0,0.00024931,2]
[332000430,1720930248124,-500.0,0.00024931,2]
[332000432,1720930248133,-500.0,0.00024931,2]
[332000433,1720930248142,-500.0,0.00024931,2]
[332000436,1720930248153,-500.0,0.00024931,2]
[332000437,1720930248162,-500.0,0.00024931,2]
[332000439,1720930248172,-500.0,0.00024931,2]
[332000441,1720930248181,-651.66,0.00024931,2]
[332000443,1720930248190,-500.0,0.00024931,2]
[332000444,1720930248200,-500.0,0.00024931,2]
[332000447,1720930248210,-500.0,0.00024931,2]
[332000448,1720930248220,-500.0,0.00024931,2]
[332000450,1720930248232,-500.0,0.00024931,2]
[332000453,1720930248243,-787.363927,0.00024931,5]
[332000455,1720930248253,-572.12011919,0.00024931,2]
[332000456,1720930248263,-500.0,0.00024931,2]
[332000459,1720930248273,-500.0,0.00024931,2]
[332000461,1720930248283,-500.0,0.00024931,2]
[332000463,1720930248292,-500.0,0.00024931,2]
[332000464,1720930248303,-480.338878,0.00024931,7]
[332000466,1720930248312,-480.338878,0.00024931,7]
[332000468,1720930248322,-480.338878,0.00024931,7]
[332000470,1720930248332,-480.338878,0.00024931,7]
[332000472,1720930248341,-480.338878,0.00024931,7]
[332000474,1720930248351,-500.0,0.00024931,2]
[332000476,1720930248360,-480.338878,0.00024931,7]
[332000478,1720930248370,-480.338878,0.00024931,7]
[332000480,1720930248379,-480.338878,0.00024931,7]
[332000482,1720930248388,-500.0,0.00024931,2]
[332000484,1720930248398,-500.0,0.00024931,2]
[332000486,1720930248407,-500.0,0.00024931,2]
[332000488,1720930248416,-265.586814,0.00024931,7]
[332000490,1720930248426,-265.586814,0.00024931,7]
[332000492,1720930248435,-265.586814,0.00024931,7]
[332000494,1720930248445,-265.586814,0.00024931,7]
[332000496,1720930248455,-500.0,0.00024931,2]
[332000498,1720930248466,-500.0,0.00024931,2]
[332000500,1720930248475,-265.586814,0.00024931,7]
[332000502,1720930248485,-265.586814,0.00024931,7]
[332000504,1720930248494,-265.586814,0.00024931,7]
[332000506,1720930248504,-265.586814,0.00024931,7]
[332000509,1720930248515,-500.0,0.00024931,2]
[332000511,1720930248525,-500.0,0.00024931,2]
[332000513,1720930248535,-1885.07,0.00024931,2]
[332000515,1720930248545,-500.0,0.00024931,2]
[332000524,1720930248622,-500.0,0.00024931,2]
[332000526,1720930248632,-804.85,0.00024931,2]
[332000528,1720930248642,-500.0,0.00024931,2]
[332000530,1720930248652,-500.0,0.00024931,2]
[332000532,1720930248662,-500.0,0.00024931,2]
[332000534,1720930248671,-2917.76,0.00024931,2]
[332000536,1720930248680,-500.0,0.00024931,2]
[332000538,1720930248690,-500.0,0.00024931,2]
[332000540,1720930248700,-500.0,0.00024931,2]
[332000542,1720930248710,-500.0,0.00024931,2]
[332000544,1720930248720,-500.0,0.00024931,2]
[332000546,1720930248729,-500.0,0.00024931,2]
[332000548,1720930248739,-500.0,0.00024931,2]
[332000549,1720930248760,-500.0,0.00024931,2]
[332000552,1720930248771,-500.0,0.00024931,2]
[332000554,1720930248781,-507.9055144,0.00024931,2]
[332000556,1720930248791,-275.257723,0.00024931,7]
[332000558,1720930248801,-500.0,0.00024931,2]
[332000560,1720930248811,-500.0,0.00024931,2]
[332000562,1720930248821,-1016.88,0.00024931,2]
[332000564,1720930248831,-500.0,0.00024931,2]
[332000566,1720930248842,-200.0,0.00024931,7]
[332000568,1720930248853,-500.0,0.00024931,2]
[332000570,1720930248863,-500.0,0.00024931,2]
[332000572,1720930248874,-500.0,0.00024931,2]
[332000574,1720930248884,-500.0,0.00024931,2]
[332000576,1720930248893,-221.495727,0.00024931,7]
[332000578,1720930248903,-221.495727,0.00024931,7]
[332000580,1720930248913,-221.495727,0.00024931,7]
[332000582,1720930248923,-221.495727,0.00024931,7]
[332000584,1720930248932,-500.0,0.00024931,2]
[332000586,1720930248943,-500.0,0.00024931,2]
[332000588,1720930248953,-500.0,0.00024931,2]
[332000590,1720930248963,-221.495727,0.00024931,7]
[332000592,1720930248973,-221.495727,0.00024931,7]
[332000594,1720930248983,-1202.46,0.00024931,2]
[332000596,1720930248993,-221.495727,0.00024931,7]
[332000598,1720930249003,-221.495733,0.00024931,7]
[332000600,1720930249013,-500.0,0.00024931,2]
[332000602,1720930249023,-500.0,0.00024931,2]
[332000604,1720930249032,-260.56485,0.00024931,7]
[332000606,1720930249042,-260.56485,0.00024931,7]
[332000608,1720930249052,-260.56485,0.00024931,7]
[332000610,1720930249061,-500.0,0.00024931,2]
[332000612,1720930249071,-260.56485,0.00024931,7]
[332000614,1720930249080,-500.0,0.00024931,2]
[332000616,1720930249091,-500.0,0.00024931,2]
[332000618,1720930249101,-500.0,0.00024931,2]
[332000620,1720930249112,-500.0,0.00024931,2]
[332000622,1720930249123,-260.56485,0.00024931,7]
[332000624,1720930249135,-260.56485,0.00024931,7]
[332000626,1720930249145,-260.56485,0.00024931,7]
[332000628,1720930249155,-260.56485,0.00024931,7]
[332000630,1720930249165,-500.0,0.00024931,2]
[332000632,1720930249174,-500.0,0.00024931,2]
[332000634,1720930249183,-505.14512963,0.00024931,2]
[332000636,1720930249193,-500.0,0.00024931,2]
[332000638,1720930249202,-500.0,0.00024931,2]
[332000641,1720930249214,-331.285999,0.00024931,7]
[332000642,1720930249225,-331.285999,0.00024931,7]
[332000645,1720930249240,-331.285999,0.00024931,7]
[332000647,1720930249250,-331.285999,0.00024931,7]
[332000649,1720930249260,-331.285999,0.00024931,7]
[332000651,1720930249271,-331.285999,0.00024931,7]
[332000653,1720930249280,-331.285999,0.00024931,7]
[332000655,1720930249290,-331.285994,0.00024931,7]
[332000657,1720930249299,-500.0,0.00024931,2]
[332000659,1720930249311,-545.32,0.00024931,2]
[332000661,1720930249320,-500.0,0.00024931,2]
[332000663,1720930249330,-500.0,0.00024931,2]
[332000665,1720930249340,-500.0,0.00024931,2]
[332000667,1720930249349,-500.0,0.00024931,2]
[332000669,1720930249359,-500.0,0.00024931,2]
[332000671,1720930249369,-500.0,0.00024931,2]
[332000673,1720930249379,-500.0,0.00024931,2]
[332000675,1720930249388,-500.0,0.00024931,2]
[332000677,1720930249398,-500.0,0.00024931,2]
[332000679,1720930249408,-500.0,0.00024931,2]
[332000681,1720930249418,-500.0,0.00024931,2]
[332000683,1720930249428,-500.0,0.00024931,2]
[332000685,1720930249438,-698.41,0.00024931,2]
[332000687,1720930249448,-500.0,0.00024931,2]
[332000689,1720930249458,-624.10402067,0.00024931,2]
[332000691,1720930249468,-500.0,0.00024931,2]
[332000693,1720930249478,-500.0,0.00024931,2]
[332000695,1720930249489,-500.0,0.00024931,2]
[332000697,1720930249503,-500.0,0.00024931,2]
[332000699,1720930249513,-500.0,0.00024931,2]
[332000701,1720930249523,-500.0,0.00024931,2]
[332000703,1720930249533,-500.0,0.00024931,2]
[332000705,1720930249544,-500.0,0.00024931,2]
[332000707,1720930249553,-500.0,0.00024931,2]
[332000710,1720930249564,-500.0,0.00024931,2]
[332000712,1720930249574,-673.78,0.00024931,2]
[332000714,1720930249585,-500.0,0.00024931,2]
[332000716,1720930249597,-429.16481685,0.00024931,2]
[332000718,1720930249608,-500.0,0.00024931,2]
[332000720,1720930249621,-500.0,0.00024931,2]
[332000722,1720930249633,-500.0,0.00024931,2]
[332000724,1720930249642,-500.0,0.00024931,2]
[332000726,1720930249652,-500.0,0.00024931,2]
[332000728,1720930249662,-500.0,0.00024931,2]
[332000730,1720930249672,-162.786986,0.00024931,7]
[332000732,1720930249683,-162.786986,0.00024931,7]
[332000734,1720930249693,-162.786986,0.00024931,7]
[332000737,1720930249703,-162.786986,0.00024931,7]
[332000739,1720930249712,-162.786986,0.00024931,7]
[332000741,1720930249723,-162.786986,0.00024931,7]
[332000743,1720930249735,-162.786986,0.00024931,7]
[332000745,1720930249744,-162.786978,0.00024931,7]
[332000748,1720930249766,-212.48195604,0.00024931,2]
[332000750,1720930249776,-15656.74,0.00024931,2]
[332000752,1720930249785,-502.73552157,0.00024931,2]
[332000754,1720930249795,-500.0,0.00024931,2]
[332000756,1720930249805,-500.0,0.00024931,2]
[332000758,1720930249815,-500.0,0.00024931,2]
[332000760,1720930249826,-682.960742,0.00024931,7]
[332000762,1720930249837,-682.960742,0.00024931,7]
[332000764,1720930249848,-682.960742,0.00024931,7]
[332000766,1720930249858,-682.960742,0.00024931,7]
[332000768,1720930249868,-846.71,0.00024931,2]
[332000770,1720930249878,-682.960742,0.00024931,7]
[332000772,1720930249887,-500.0,0.00024931,2]
[332000774,1720930249897,-682.960742,0.00024931,7]
[332000776,1720930249906,-682.960742,0.00024931,7]
[332000778,1720930249916,-682.960748,0.00024931,7]
[332000780,1720930249925,-500.0,0.00024931,2]
[332000782,1720930249934,-425.80345672,0.00024931,2]
[332000784,1720930249944,-500.0,0.00024931,2]
[332000786,1720930249954,-500.0,0.00024931,2]
[332000788,1720930249965,-500.0,0.00024931,2]
[332000790,1720930249975,-500.0,0.00024931,2]
[332000792,1720930249985,-627.926559,0.00024931,7]
[332000794,1720930249995,-627.926559,0.00024931,7]
[332000796,1720930250004,-627.926559,0.00024931,7]
[332000798,1720930250015,-500.0,0.00024931,2]
[332000800,1720930250025,-627.926559,0.00024931,7]
[332000802,1720930250034,-627.926559,0.00024931,7]
[332000804,1720930250044,-627.926566,0.00024931,7]
[332000806,1720930250054,-500.0,0.00024931,2]
[332000808,1720930250063,-500.0,0.00024931,2]
[332000810,1720930250073,-500.0,0.00024931,2]
[332000813,1720930250084,-500.0,0.00024931,2]
[332000821,1720930250157,-1132.99,0.00024931,2]
[332000823,1720930250167,-500.0,0.00024931,2]
[332000826,1720930250177,-500.0,0.00024931,2]
[332000827,1720930250187,-500.0,0.00024931,2]
[332000829,1720930250196,-500.0,0.00024931,2]
[332000831,1720930250205,-500.0,0.00024931,2]
[332000833,1720930250216,-500.0,0.00024931,2]
[332000836,1720930250229,-500.0,0.00024931,2]
[332000838,1720930250242,-409.466845,0.00024931,7]
[332000840,1720930250251,-409.466845,0.00024931,7]
[332000841,1720930250260,-409.466845,0.00024931,7]
[332000844,1720930250271,-500.0,0.00024931,2]
[332000846,1720930250280,-500.0,0.00024931,2]
[332000848,1720930250290,-409.466845,0.00024931,7]
[332000850,1720930250299,-409.466845,0.00024931,7]
[332000852,1720930250310,-409.466854,0.00024931,7]
[332000854,1720930250319,-500.0,0.00024931,2]
[332000856,1720930250328,-500.0,0.00024931,2]
[332000858,1720930250338,-500.0,0.00024931,2]
[332000860,1720930250347,-437.398524,0.00024931,7]
[332000861,1720930250357,-500.0,0.00024931,2]
[332000863,1720930250366,-437.398524,0.00024931,7]
[332000865,1720930250377,-437.398524,0.00024931,7]
[332000868,1720930250387,-500.0,0.00024931,2]
[332000870,1720930250397,-500.0,0.00024931,2]
[332000872,1720930250406,-500.0,0.00024931,2]
[332000873,1720930250416,-380.749025,0.00024931,7]
[332000876,1720930250426,-437.398524,0.00024931,7]
[332000877,1720930250435,-437.398524,0.00024931,7]
[332000879,1720930250444,-380.749025,0.00024931,7]
[332000881,1720930250454,-437.398526,0.00024931,7]
[332000883,1720930250465,-380.749025,0.00024931,7]
[332000885,1720930250474,-500.0,0.00024931,2]
[332000887,1720930250484,-380.749025,0.00024931,7]
[332000889,1720930250494,-380.749025,0.00024931,7]
[332000891,1720930250504,-380.74903,0.00024931,7]
[332000893,1720930250514,-500.0,0.00024931,2]
[332000896,1720930250524,-151.0,0.00024931,7]
[332000898,1720930250534,-500.0,0.00024931,2]
[332000900,1720930250544,-151.0,0.00024931,7]
[332000902,1720930250554,-151.0,0.00024931,7]
[332000904,1720930250564,-500.0,0.00024931,2]
[332000906,1720930250574,-500.0,0.00024931,2]
[332000908,1720930250583,-500.0,0.00024931,2]
[332000910,1720930250593,-500.0,0.00024931,2]
[332000912,1720930250603,-500.0,0.00024931,2]
[332000914,1720930250613,-387.563177,0.00024931,7]
[332000916,1720930250625,-387.563177,0.00024931,7]
[332000918,1720930250634,-387.563177,0.00024931,7]
[332000920,1720930250643,-432.10804441,0.00024931,2]
[332000922,1720930250653,-387.563177,0.00024931,7]
[332000924,1720930250662,-387.563177,0.00024931,7]
[332000926,1720930250671,-500.0,0.00024931,2]
[332000928,1720930250681,-500.0,0.00024931,2]
[332000930,1720930250691,-387.563174,0.00024931,7]
[332000932,1720930250700,-500.0,0.00024931,2]
[332000934,1720930250710,-500.0,0.00024931,2]
[332000936,1720930250722,-151.0,0.00024968,7]
[332000938,1720930250733,-1853.17476112,0.00025,2]
[332000940,1720930250744,-154.57491897,0.00025,2]
[332000942,1720930250754,-154.81519704,0.00025,2]
[332000944,1720930250764,-260.62534725,0.00025,2]
[332000946,1720930250774,-151.0,0.00025,7]
[332000948,1720930250786,-229.36682605,0.00025,2]
[332000950,1720930250795,-420.0,0.00025,2]
[332000952,1720930250804,-500.0,0.0002513,2]
[332000954,1720930250816,-1407.0,0.00025138,2]
[332000956,1720930250826,-253.309539,0.00025173,7]
[332000959,1720930250837,-253.309539,0.00025173,7]
[332000961,1720930250848,-480.338878,0.00025173,7]
[332000963,1720930250858,-480.338869,0.00025173,7]
[332000965,1720930250868,-265.586814,0.00025173,7]
[332000967,1720930250878,-265.586807,0.00025173,7]
[332000969,1720930250888,-14478.7863668,0.00025195,3]
[332000971,1720930250898,-500.0,0.00025204,2]
[332000973,1720930250908,-500.0,0.00025205,2]
[332000975,1720930250918,-500.0,0.00025205,2]
[332000977,1720930250928,-515.70059679,0.00025205,2]
[332000978,1720930250938,-500.0,0.00025205,2]
[332000980,1720930250947,-500.0,0.00025205,2]
[332000982,1720930250957,-380.98057183,0.00025205,2]
[332000984,1720930250969,-500.0,0.00025205,2]
[332000987,1720930250979,-500.0,0.00025205,2]
[332000989,1720930250990,-500.0,0.00025205,2]
[332000991,1720930251001,-500.0,0.00025205,2]
[332000993,1720930251013,-500.0,0.00025205,2]
[332000995,1720930251025,-500.0,0.00025205,2]
[332000997,1720930251034,-500.0,0.00025205,2]
[332000999,1720930251044,-519.34194674,0.00025205,2]
[332001001,1720930251053,-500.0,0.00025205,2]
[332001003,1720930251062,-500.0,0.00025205,2]
[332001005,1720930251072,-500.0,0.00025205,2]
[332001007,1720930251081,-508.39784906,0.00025205,2]
[332001009,1720930251090,-500.0,0.00025205,2]
[332001011,1720930251100,-500.0,0.00025205,2]
[332001013,1720930251109,-500.0,0.00025205,2]
[332001015,1720930251119,-500.0,0.00025205,2]
[332001017,1720930251128,-500.0,0.00025205,2]
[332001019,1720930251137,-151.0,0.00025205,7]
[332001021,1720930251146,-151.0,0.00025205,7]
[332001023,1720930251156,-151.0,0.00025205,7]
[332001025,1720930251165,-500.0,0.00025205,2]
[332001027,1720930251175,-500.0,0.00025205,2]
[332001029,1720930251184,-500.0,0.00025205,2]
[332001031,1720930251193,-500.0,0.00025205,2]
[332001033,1720930251202,-500.0,0.00025205,2]
[332001035,1720930251211,-151.0,0.00025205,7]
[332001037,1720930251223,-151.0,0.00025205,7]
[332001039,1720930251237,-151.0,0.00025205,7]
[332001041,1720930251247,-500.0,0.00025205,2]
[332001043,1720930251256,-500.0,0.00025205,2]
[332001045,1720930251266,-500.0,0.00025205,2]
[332001047,1720930251276,-500.0,0.00025205,2]
[332001049,1720930251285,-500.0,0.00025205,2]
[332001051,1720930251294,-500.0,0.00025205,2]
[332001053,1720930251304,-253.309539,0.00025205,7]
[332001055,1720930251313,-344.44860253,0.00025205,2]
[332001056,1720930251322,-253.309546,0.00025205,7]
[332001058,1720930251332,-500.0,0.00025205,2]
[332001060,1720930251341,-500.0,0.00025205,2]
[332001062,1720930251350,-489.22348685,0.00025205,2]
[332001064,1720930251360,-500.0,0.00025205,2]
[332001066,1720930251369,-500.0,0.00025205,2]
[332001068,1720930251379,-500.0,0.00025205,2]
[332001070,1720930251388,-500.0,0.00025205,2]
[332001072,1720930251398,-500.0,0.00025205,2]
[332001074,1720930251407,-500.0,0.00025205,2]
[332001076,1720930251416,-500.0,0.00025205,2]
[332001078,1720930251426,-500.0,0.00025205,2]
[332001080,1720930251435,-500.0,0.00025205,2]
[332001082,1720930251445,-500.0,0.00025205,2]
[332001084,1720930251455,-500.0,0.00025205,2]
[332001092,1720930251526,-500.0,0.00025205,2]
[332001094,1720930251536,-500.0,0.00025205,2]
[332001096,1720930251546,-500.0,0.00025205,2]
[332001098,1720930251555,-500.0,0.00025205,2]
[332001100,1720930251565,-502.0874754,0.00025205,2]
[332001102,1720930251574,-500.0,0.00025205,2]
[332001104,1720930251584,-500.0,0.00025205,2]
[332001106,1720930251593,-480.92286979,0.00025205,2]
[332001108,1720930251603,-500.0,0.00025205,2]
[332001110,1720930251612,-500.0,0.00025205,2]
[332001112,1720930251622,-500.0,0.00025205,2]
[332001114,1720930251632,-1500.0,0.00025205,2]
[332001116,1720930251641,-500.0,0.00025205,2]
[332001118,1720930251651,-151.0,0.00025205,7]
[332001120,1720930251660,-151.0,0.00025205,7]
[332001122,1720930251670,-500.0,0.00025205,2]
[332001124,1720930251679,-500.0,0.00025205,2]
[332001126,1720930251689,-500.0,0.00025205,2]
[332001128,1720930251698,-500.0,0.00025205,2]
[332001130,1720930251707,-500.0,0.00025205,2]
[332001132,1720930251718,-500.0,0.00025205,2]
[332001134,1720930251727,-500.0,0.00025205,2]
[332001136,1720930251736,-540.51053871,0.00025205,2]
[332001138,1720930251746,-500.0,0.00025205,2]
[332001140,1720930251755,-500.0,0.00025205,2]
[332001142,1720930251764,-500.0,0.00025205,2]
[332001144,1720930251773,-500.0,0.00025205,2]
[332001146,1720930251782,-500.0,0.00025205,2]
[332001147,1720930251792,-151.0,0.00025205,7]
[332001149,1720930251801,-500.0,0.00025205,2]
[332001151,1720930251810,-500.0,0.00025205,2]
[332001153,1720930251819,-500.0,0.00025205,2]
[332001155,1720930251829,-500.0,0.00025205,2]
[332001157,1720930251839,-568.07,0.00025205,2]
[332001159,1720930251848,-500.0,0.00025205,2]
[332001161,1720930251858,-500.0,0.00025205,2]
[332001163,1720930251867,-663.50536602,0.00025205,2]
[332003722,1720931048445,154.77171248,0.00014999,2]
[332003723,1720931149158,-396.77389146,0.00018,2]
[332003724,1720931149180,-163.60309576,0.00021096,2]
[332003725,1720931229231,-168.52069924,0.00021096,2]
[332003726,1720931229253,-225.9011813,0.00021096,2]
[332003727,1720931229274,-484.34991746,0.00021166,2]
[332003728,1720931233111,-790.60618395,0.00021166,2]
[332003729,1720931239115,-2159.50854709,0.00021166,2]
[332003730,1720931239137,-409.1853486,0.0002123,2]
[332003731,1720931239158,-249.5563831,0.00021259,2]
[332003732,1720931239180,-166.637948,0.00021575,2]
[332003733,1720931239202,-15.11177321,0.0002165,2]
[332003734,1720931243119,-151.52617479,0.0002165,2]
[332003735,1720931243142,-166.637948,0.00021725,2]
[332003736,1720931243164,-166.637948,0.000218,2]
[332003737,1720931243187,-166.637948,0.00021875,2]
[332003738,1720931243209,-7.68399221,0.00021918,2]
[332003739,1720931252105,-165.05745677,0.00021918,2]
[332003747,1720931346116,-150.0,0.00019625,2]
[332003748,1720931346138,-750.0,0.00021096,2]
[332003749,1720931346162,-300.0,0.00021359,2]
[332003750,1720931346184,-24900.0,0.0002136,2]
[332003751,1720931346206,-1.86290502,0.00021918,2]
[332003752,1720931346227,-428.71334484,0.00021918,2]
[332003753,1720931346248,-166.637948,0.0002195,2]
[332003754,1720931346268,-378.41841703,0.00022,2]
[332003755,1720931346289,-166.637948,0.00022025,2]
[332003756,1720931347105,-166.637948,0.000221,2]
[332003757,1720931347128,-166.637948,0.00022175,2]
[332003758,1720931351109,-154.57491897,0.00022249,2]
[332003761,1720931356501,-12.06302903,0.00022249,2]
[332003762,1720931356521,-633.99090336,0.00022288,2]
[332003763,1720931371131,-166.637948,0.00022324,2]
[332003764,1720931371155,-166.637948,0.00022399,2]
[332003769,1720931428915,428.54281758,0.00022399,2]
[332003922,1720931439941,-166.637948,0.00022474,2]
[332003924,1720931439952,-166.637948,0.00022549,2]
[332003926,1720931439961,-166.637948,0.00022624,2]
[332003928,1720931439971,-166.637948,0.00022699,2]
[332003930,1720931439981,-161.919359,0.00022767,2]
[332003932,1720931439991,-174.604354,0.00022773,2]
[332003934,1720931440001,-858.22098995,0.00023,2]
[332003936,1720931440011,-153.0,0.00023041,2]
[332003938,1720931440020,-174.604354,0.00023627,2]
[332003940,1720931440030,-1066.54542754,0.00023966,2]
[332003942,1720931440040,-174.604354,0.00024482,2]
[332003944,1720931440049,-2061.30059612,0.00024557,2]
[332003946,1720931440059,-1271.36096766,0.00024557,2]
[332003948,1720931440069,-300.0,0.00024646,2]
[332003950,1720931440078,-17431.84147,0.00024647,3]
[332003952,1720931440087,-207.2990329,0.00024656,2]
[332003954,1720931440097,-520.7695725,0.00024656,2]
[332003956,1720931440107,-461.84701295,0.00024656,2]
[332003958,1720931440117,-500.0,0.00024657,2]
[332003960,1720931440126,-500.0,0.00024657,2]
[332003962,1720931440136,-500.0,0.00024657,2]
[332003964,1720931440145,-500.0,0.00024657,2]
[332003966,1720931440155,-500.0,0.00024657,2]
[332003968,1720931440164,-500.0,0.00024657,2]
[332003970,1720931440173,-500.0,0.00024657,2]
[332003972,1720931440184,-559.51266368,0.00024657,2]
[332003974,1720931440195,-500.0,0.00024657,2]
[332003976,1720931440204,-504.74544195,0.00024657,2]
[332003978,1720931440213,-503.57907051,0.00024657,2]
[332003980,1720931440223,-500.0,0.00024657,2]
[332003982,1720931440233,-500.0,0.00024657,2]
[332003984,1720931440242,-502.52945941,0.00024657,2]
[332003986,1720931440252,-500.0,0.00024657,2]
[332003988,1720931440261,-311.27521595,0.00024657,2]
[332003990,1720931440270,-500.0,0.00024657,2]
[332003992,1720931440280,-500.0,0.00024657,2]
[332003994,1720931440289,-500.0,0.00024657,2]
[332003996,1720931440299,-500.0,0.00024657,2]
[332003998,1720931440308,-523.22,0.00024657,2]
[332004000,1720931440319,-500.0,0.00024657,2]
[332004002,1720931440330,-500.0,0.00024657,2]
[332004004,1720931440340,-500.0,0.00024657,2]
[332004006,1720931440349,-500.0,0.00024657,2]
[332004008,1720931440358,-500.0,0.00024657,2]
[332004010,1720931440367,-500.0,0.00024657,2]
[332004012,1720931440377,-500.0,0.00024657,2]
[332004014,1720931440387,-500.0,0.00024657,2]
[332004016,1720931440397,-524.21912007,0.00024657,2]
[332004018,1720931440407,-500.0,0.00024657,2]
[332004020,1720931440416,-506.28757041,0.00024657,2]
[332004022,1720931440426,-379.39401125,0.00024657,2]
[332004024,1720931440435,-500.0,0.00024657,2]
[332004026,1720931440447,-500.0,0.00024657,2]
[332004028,1720931440457,-500.0,0.00024657,2]
[332004030,1720931440466,-500.0,0.00024657,2]
[332004032,1720931440476,-500.0,0.00024657,2]
[332004034,1720931440486,-500.0,0.00024657,2]
[332004036,1720931440496,-500.0,0.00024657,2]
[332004039,1720931440507,-500.0,0.00024657,2]
[332004041,1720931440516,-500.0,0.00024657,2]
[332004042,1720931440525,-500.0,0.00024657,2]
[332004044,1720931440534,-500.0,0.00024657,2]
[332004046,1720931440543,-500.0,0.00024657,2]
[332004048,1720931440552,-500.0,0.00024657,2]
[332004050,1720931440561,-500.0,0.00024657,2]
[332004052,1720931440570,-508.03039182,0.00024657,2]
[332004054,1720931440579,-500.0,0.00024657,2]
[332004056,1720931440588,-500.0,0.00024657,2]
[332004058,1720931440597,-500.0,0.00024657,2]
[332004060,1720931440607,-501.35577498,0.00024657,2]
[332004062,1720931440616,-500.0,0.00024657,2]
[332004064,1720931440629,-500.9501798,0.00024657,2]
[332004066,1720931440640,-500.0,0.00024657,2]
[332004068,1720931440649,-503.21492278,0.00024657,2]
[332004070,1720931440659,-500.0,0.00024657,2]
[332004072,1720931440670,-500.0,0.00024657,2]
[332004074,1720931440679,-500.0,0.00024657,2]
[332004076,1720931440691,-512.44523419,0.00024657,2]
[332004078,1720931440702,-500.0,0.00024657,2]
[332004080,1720931440712,-500.0,0.00024657,2]
[332004082,1720931440721,-500.0,0.00024657,2]
[332004084,1720931440733,-503.38196138,0.00024657,2]
[332004086,1720931440744,-242.56428801,0.00024657,2]
[332004088,1720931440754,-500.0,0.00024657,2]
[332004090,1720931440764,-480.92286979,0.00024657,2]
[332004092,1720931440774,-1500.0,0.00024657,2]
[332004094,1720931440784,-500.0,0.00024657,2]
[332004096,1720931440793,-500.0,0.00024657,2]
[332004098,1720931440802,-171.92637048,0.00024657,2]
[332004100,1720931440812,-500.0,0.00024657,2]
[332004102,1720931440822,-500.0,0.00024657,2]
[332004104,1720931440831,-500.0,0.00024657,2]
[332004106,1720931440841,-500.0,0.00024657,2]
[332004108,1720931440850,-500.0,0.00024657,2]
[332004110,1720931440860,-500.0,0.00024657,2]
[332004112,1720931440869,-500.0,0.00024657,2]
[332004115,1720931440879,-500.0,0.00024657,2]
[332004117,1720931440889,-501.1500808,0.00024657,2]
[332004119,1720931440898,-500.0,0.00024657,2]
[332004120,1720931440907,-500.0,0.00024657,2]
[332004122,1720931440917,-504.50001801,0.00024657,2]
[332004124,1720931440927,-500.0,0.00024657,2]